bitfinex/quotes_SOLUSD_20240913
["timestamp","ask_amount","ask_price","bid_price","bid_amount"]
[1726217548096,21.985,134.2,134.14,12.05178944]
[1726217548418,15.2783,134.2,134.14,12.05178944]
[1726217548698,6.7072,134.19,134.14,12.05178944]
[1726217548880,21.9848,134.2,134.14,4.2719173]
[1726217550197,6.7075,134.18,134.14,4.2719173]
[1726217551793,6.7074,134.19,134.14,4.2719173]
[1726217553300,15.2783,134.2,134.14,4.2719173]
[1726217553477,6.7069,134.19,134.14,4.2719173]
[1726217556187,6.708,134.17,134.14,4.2719173]
[1726217560606,13.001,134.18,134.14,4.2719173]
[1726217560806,6.7079,134.17,134.14,4.2719173]
[1726217562909,6.7085,134.16,134.14,4.2719173]
[1726217563714,22.5707,134.16,134.14,4.2719173]
[1726217564918,6.7089,134.15,134.14,4.2719173]
[1726217565509,22.5707,134.16,134.14,4.2719173]
[1726217567721,30.736764,134.15,134.14,4.2719173]
[1726217568026,30.736764,134.15,134.1,0.2477426]
[1726217568027,6.7105,134.12,134.1,0.2477426]
[1726217570728,6.7109,134.11,134.1,0.2477426]
[1726217571428,6.1543,134.14,134.1,0.2477426]
[1726217571429,6.7105,134.12,134.1,0.2477426]
[1726217577410,6.71,134.13,134.1,0.2477426]
[1726217581530,6.7104,134.12,134.1,0.2477426]
[1726217584145,6.7099,134.13,134.1,0.2477426]
[1726217584354,15.8622,134.16,134.1,0.2477426]
[1726217585426,6.709,134.15,134.1,0.2477426]
[1726217586232,6.7094,134.14,134.1,0.2477426]
[1726217587633,6.7085,134.16,134.1,0.2477426]
[1726217589430,6.7089,134.15,134.1,0.2477426]
[1726217589812,6.7094,134.14,134.1,0.2477426]
[1726217595131,6.7099,134.13,134.1,0.2477426]
[1726217595330,40.546884,134.17,134.1,0.2477426]
[1726217595532,6.7095,134.14,134.1,0.2477426]
[1726217600261,0.25098,134.16,134.1,0.2477426]
[1726217600262,6.7099,134.13,134.1,0.2477426]
[1726217601346,6.7105,134.12,134.1,0.2477426]
[1726217603879,6.7098,134.14,134.1,0.2477426]
[1726217604160,6.7099,134.13,134.1,0.2477426]
[1726217604553,6.7095,134.14,134.1,0.2477426]
[1726217604748,6.709,134.15,134.1,0.2477426]
[1726217608459,6.7094,134.14,134.1,0.2477426]
[1726217609778,6.7103,134.13,134.1,0.2477426]
[1726217611960,6.7095,134.14,134.1,0.2477426]
[1726217615750,6.7099,134.13,134.1,0.2477426]
[1726217616470,6.7092,134.15,134.1,0.2477426]
[1726217618561,6.7094,134.14,134.1,0.2477426]
[1726217625380,6.709,134.15,134.1,0.2477426]
[1726217628377,6.7085,134.16,134.11,16.4416]
[1726217628580,6.708,134.17,134.11,22.4503]
[1726217628957,23.2454,134.21,134.11,22.4503]
[1726217629162,6.7075,134.18,134.11,22.4503]
[1726217630584,6.7079,134.17,134.11,22.4503]
[1726217631664,6.7075,134.18,134.11,22.4503]
[1726217635580,6.7075,134.18,134.12,1.49078116]
[1726217636676,6.7075,134.18,134.13,1.49079207]
[1726217637183,6.7069,134.19,134.11,37.31834782]
[1726217637686,6.7069,134.19,134.12,14.86804782]
[1726217637862,6.7069,134.19,134.13,16.1036]
[1726217638060,6.7065,134.2,134.14,6.2373]
[1726217638290,6.706,134.21,134.14,21.10534782]
[1726217639269,6.7055,134.22,134.15,15.9393]
[1726217640260,6.7055,134.22,134.16,1.49043113]
[1726217640466,6.7055,134.22,134.15,30.80734782]
[1726217640774,6.7055,134.22,134.15,15.9393]
[1726217641263,6.7059,134.21,134.15,15.9393]
[1726217642085,6.7055,134.22,134.15,15.9393]
[1726217644070,6.7059,134.21,134.15,15.9393]
[1726217644678,6.7064,134.2,134.15,15.9393]
[1726217645393,6.706,134.21,134.15,15.9393]
[1726217647994,6.7055,134.22,134.15,15.9393]
[1726217649391,6.7055,134.22,134.15,15.9393]
[1726217649975,6.7059,134.21,134.15,15.9393]
[1726217651988,6.7055,134.22,134.15,15.9393]
[1726217653482,6.7059,134.21,134.15,15.9393]
[1726217654794,17.0095426,134.24,134.15,15.9393]
[1726217654971,6.7055,134.22,134.15,15.9393]
[1726217658103,6.7059,134.21,134.15,15.9393]
[1726217662290,6.7064,134.2,134.15,15.9393]
[1726217662494,6.7061,134.21,134.15,15.9393]
[1726217681127,6.7072,134.19,134.15,15.9393]
[1726217685437,6.7064,134.2,134.15,15.9393]
[1726217686911,6.7061,134.21,134.15,15.9393]
[1726217687135,6.7065,134.2,134.15,15.9393]
[1726217699861,6.7069,134.19,134.15,15.9393]
[1726217702033,6.7077,134.18,134.15,15.9393]
[1726217705448,6.7071,134.19,134.15,15.9393]
[1726217705648,6.7066,134.2,134.15,15.9393]
[1726217705847,6.7061,134.21,134.15,15.9393]
[1726217708349,6.7064,134.2,134.15,15.9393]
[1726217709166,6.706,134.21,134.15,15.9393]
[1726217712361,6.7064,134.2,134.15,15.9393]
[1726217714254,24.0246266,134.24,134.15,15.9393]
[1726217714457,20.0,134.23,134.15,15.9393]
[1726217715367,6.7054,134.22,134.15,15.9393]
[1726217716863,6.7054,134.22,134.16,6.351]
[1726217717163,6.7054,134.22,134.17,15.5643]
[1726217722768,6.705,134.23,134.17,15.5643]
[1726217724472,6.7064,134.2,134.17,15.5643]
[1726217724676,6.7055,134.22,134.17,15.5643]
[1726217725453,6.706,134.21,134.17,15.5643]
[1726217732274,6.7066,134.2,134.17,15.5643]
[1726217742079,6.7059,134.21,134.17,15.5643]
[1726217742854,6.7064,134.2,134.17,15.5643]
[1726217750792,6.7061,134.21,134.17,15.5643]
[1726217754972,24.0246266,134.24,134.17,15.5643]
[1726217754973,6.7064,134.2,134.17,15.5643]
[1726217758895,24.0246266,134.24,134.17,15.5643]
[1726217759082,6.7057,134.22,134.17,15.5643]
[1726217760093,6.7059,134.21,134.17,15.5643]
[1726217766902,6.7072,134.19,134.17,15.5643]
[1726217769185,6.7074,134.18,134.14,16.0172]
[1726217771776,6.7084,134.16,134.14,16.0172]
[1726217772293,6.7079,134.17,134.14,16.0172]
[1726217779605,6.7084,134.16,134.14,16.0172]
[1726217781713,6.7107,134.12,134.1,22.4558426]
[1726217782027,43.776884,134.16,134.1,22.4558426]
[1726217782202,6.7103,134.13,134.1,22.4558426]
[1726217782515,6.7097,134.14,134.1,22.4558426]
[1726217789713,6.709,134.15,134.1,22.4558426]
[1726217794026,6.7094,134.14,134.1,22.4558426]
[1726217795440,6.709,134.15,134.1,22.4558426]
[1726217795811,6.7084,134.16,134.1,22.4558426]
[1726217796016,16.7657,134.21,134.1,37.32389042]
[1726217797349,6.7079,134.17,134.1,37.32389042]
[1726217797510,6.7079,134.17,134.11,0.25098]
[1726217801046,6.7075,134.18,134.12,16.4281]
[1726217804244,23.776884,134.2,134.12,16.4281]
[1726217804245,6.7068,134.2,134.13,6.42858]
[1726217805325,6.7069,134.19,134.13,6.42858]
[1726217810644,6.7074,134.18,134.13,6.42858]
[1726217810844,6.7074,134.18,134.13,6.1776]
[1726217811636,6.7069,134.19,134.13,6.1776]
[1726217811840,6.7069,134.19,134.14,15.1311]
[1726217814448,6.7064,134.2,134.14,15.1311]
[1726217814644,6.706,134.21,134.14,29.99914782]
[1726217815727,6.706,134.21,134.15,22.46338]
[1726217824167,6.7064,134.2,134.15,22.46338]
[1726217824389,6.7064,134.2,134.15,22.2124]
[1726217832363,6.7069,134.19,134.15,22.2124]
[1726217839660,6.7074,134.18,134.15,22.2124]
[1726217844107,6.7084,134.16,134.12,21.7774]
[1726217846169,6.7089,134.15,134.12,21.7774]
[1726217846379,6.7094,134.14,134.12,15.707]
[1726217846575,16.7677,134.19,134.12,15.707]
[1726217846576,6.709,134.15,134.12,15.707]
[1726217847159,6.7094,134.14,134.12,15.707]
[1726217848593,6.7091,134.15,134.12,15.707]
[1726217852382,6.7094,134.14,134.12,15.707]
[1726217855069,6.7094,134.14,134.1,0.2477426]
[1726217855371,6.7099,134.13,134.1,0.2477426]
[1726217887105,6.7104,134.12,134.1,0.2477426]
[1726217890087,6.7109,134.11,134.1,0.2477426]
[1726217912132,30.487784,134.11,134.1,0.2477426]
[1726217921843,6.7109,134.11,134.1,0.2477426]
[1726217924948,30.487784,134.11,134.1,0.2477426]
[1726217934652,6.7109,134.11,134.1,0.2477426]
[1726217938669,30.487784,134.11,134.1,0.2477426]
[1726217945342,6.7104,134.12,134.1,0.2477426]
[1726217946552,6.7101,134.13,134.1,0.2477426]
[1726217946756,23.776884,134.12,134.1,0.2477426]
[1726217948064,6.7101,134.13,134.1,0.2477426]
[1726217958363,6.7091,134.15,134.1,15.8448426]
[1726217958566,6.7084,134.16,134.1,15.8448426]
[1726217960257,20.0,134.18,134.1,15.8448426]
[1726217961251,6.7084,134.16,134.1,15.8448426]
[1726217981488,30.484984,134.17,134.1,15.8448426]
[1726217984976,6.7084,134.16,134.1,15.8448426]
[1726218003677,30.485784,134.15,134.1,15.8448426]
[1726218003883,6.7089,134.15,134.1,15.8448426]
[1726218004199,23.776884,134.14,134.1,15.8448426]
[1726218016185,6.7089,134.15,134.1,15.8448426]
[1726218021791,23.776884,134.14,134.1,15.8448426]
[1726218022215,6.7091,134.15,134.1,15.8448426]
[1726218025719,6.7083,134.17,134.1,15.8448426]
[1726218027202,23.776884,134.16,134.1,15.8448426]
[1726218027390,30.485384,134.16,134.1,15.8448426]
[1726218028523,23.776884,134.16,134.1,15.8448426]
[1726218029095,30.485284,134.16,134.1,15.8448426]
[1726218042328,6.7089,134.15,134.1,15.8448426]
[1726218043527,30.485384,134.16,134.1,15.8448426]
[1726218043730,23.776884,134.16,134.1,15.8448426]
[1726218044040,6.7074,134.18,134.13,16.4782]
[1726218051331,6.7079,134.17,134.13,16.4782]
[1726218055521,6.7085,134.16,134.13,16.4782]
[1726218055723,23.776884,134.15,134.13,16.4782]
[1726218062042,6.708,134.17,134.13,16.4782]
[1726218062348,30.485384,134.16,134.13,16.4782]
[1726218065435,30.485384,134.16,134.12,6.6555]
[1726218065636,0.58715626,134.15,134.12,6.6555]
[1726218081865,7.29605626,134.15,134.11,15.3501]
[1726218082160,23.776884,134.14,134.11,15.3501]
[1726218082372,0.58715626,134.13,134.11,15.3501]
[1726218083167,0.58715626,134.13,134.1,0.2477426]
[1726218101772,7.29705626,134.13,134.1,0.2477426]
[1726218105775,23.776884,134.12,134.1,0.2477426]
[1726218105986,24.36404026,134.11,134.1,0.2477426]
[1726218112988,24.36404026,134.11,134.06,0.2477426]
[1726218112989,6.7129,134.07,134.06,0.2477426]
[1726218113163,30.489784,134.07,134.06,0.2477426]
[1726218120990,23.31443626,134.11,134.06,0.2477426]
[1726218120991,6.7124,134.09,134.06,0.2477426]
[1726218121284,0.58715626,134.09,134.06,0.2477426]
[1726218143389,7.29905626,134.09,134.06,0.2477426]
[1726218151217,0.58715626,134.09,134.06,0.2477426]
[1726218151602,23.776884,134.08,134.06,0.2477426]
[1726218151804,24.36404026,134.07,134.06,0.2477426]
[1726218156330,0.58715626,134.07,134.06,0.2477426]
[1726218156520,0.58715626,134.07,134.06,36.60733825]
[1726218156722,0.58715626,134.07,134.06,59.42161825]
[1726218157427,0.58715626,134.07,134.06,65.75401719]
[1726218157841,6.7088,134.16,134.07,20.0]
[1726218158128,6.7088,134.16,134.09,14.86804782]
[1726218158341,6.7088,134.16,134.1,1.49121923]
[1726218159233,6.7088,134.16,134.09,16.3592817]
[1726218159537,6.7088,134.16,134.09,1.49123388]
[1726218160114,6.709,134.15,134.09,1.49123388]
[1726218160312,23.776884,134.14,134.09,1.49123388]
[1726218161826,6.709,134.15,134.09,1.49123388]
[1726218162025,6.7084,134.16,134.09,16.4364]
[1726218162431,6.708,134.17,134.1,1.49108306]
[1726218163214,23.776884,134.16,134.09,31.30444782]
[1726218163912,23.776884,134.16,134.1,20.0]
[1726218164234,23.776884,134.16,134.11,6.602]
[1726218166732,6.7075,134.18,134.11,21.47004782]
[1726218167041,23.776884,134.17,134.11,21.47004782]
[1726218167837,23.776884,134.17,134.11,6.602]
[1726218168141,30.484784,134.17,134.11,6.602]
[1726218169524,23.776884,134.17,134.11,6.602]
[1726218171135,0.2477426,134.2,134.11,6.602]
[1726218171435,6.7073,134.19,134.12,16.0607]
[1726218171609,6.7073,134.19,134.12,30.92874782]
[1726218171817,6.7073,134.19,134.13,1.49073511]
[1726218172232,6.7073,134.19,134.12,30.92874782]
[1726218172623,23.776884,134.18,134.12,30.92874782]
[1726218174730,6.7073,134.19,134.12,30.92874782]
[1726218176137,6.7073,134.19,134.12,16.0607]
[1726218177037,6.7074,134.18,134.12,16.0607]
[1726218179746,6.7071,134.19,134.12,16.0607]
[1726218180158,23.776884,134.18,134.12,16.0607]
[1726218181254,30.484284,134.18,134.12,16.0607]
[1726218181952,23.776884,134.18,134.12,16.0607]
[1726218185533,30.484384,134.18,134.12,16.0607]
[1726218186540,6.7082,134.17,134.12,16.0607]
[1726218188526,6.7084,134.16,134.12,16.0607]
[1726218188729,6.7079,134.17,134.12,16.0607]
[1726218190955,6.7075,134.18,134.12,16.0607]
[1726218191151,23.776884,134.17,134.12,16.0607]
[1726218193666,6.9542426,134.2,134.13,16.35898707]
[1726218194951,6.9542426,134.2,134.13,14.86804782]
[1726218195267,23.776884,134.19,134.13,14.86804782]
[1726218202064,23.776884,134.19,134.12,16.0607]
[1726218202277,30.483784,134.19,134.13,20.0]
[1726218202567,23.776884,134.19,134.13,20.0]
[1726218203469,23.776884,134.19,134.13,34.86804782]
[1726218203645,0.2477426,134.2,134.15,34.86804782]
[1726218205262,0.2477426,134.2,134.16,14.86804782]
[1726218208057,0.2477426,134.2,134.17,31.08344782]
[1726218211055,0.2477426,134.2,134.18,6.2342]
[1726218215592,0.2477426,134.2,134.18,21.10224782]
[1726218218785,0.2477426,134.2,134.18,6.2342]
[1726218221570,0.2477426,134.2,134.17,16.2154]
[1726218221777,0.2477426,134.2,134.18,20.0]
[1726218222374,0.2477426,134.2,134.17,16.2154]
[1726218237912,0.2477426,134.2,134.16,20.12549]
[1726218239400,0.2477426,134.2,134.16,34.99353782]
[1726218240105,0.2477426,134.2,134.16,20.12549]
[1726218246018,0.2477426,134.2,134.16,34.99353782]
[1726218246714,0.2477426,134.2,134.17,0.12549]
[1726218248214,0.2477426,134.2,134.18,14.86804782]
[1726218248420,0.2477426,134.2,134.19,34.99353782]
[1726218248624,0.2477426,134.2,134.19,36.48355197]
[1726218248911,0.2477426,134.2,134.19,36.60904197]
[1726218249527,0.2477426,134.2,134.19,35.11902782]
[1726218251921,0.2477426,134.2,134.19,41.44463392]
[1726218253304,0.2477426,134.2,134.19,35.11902782]
[1726218255702,0.2477426,134.2,134.19,15.11902782]
[1726218255910,0.2477426,134.2,134.19,35.11902782]
[1726218259328,0.2477426,134.2,134.19,15.11902782]
[1726218259506,0.2477426,134.2,134.19,35.11902782]
[1726218263428,0.2477426,134.2,134.19,20.25098]
[1726218263729,0.2477426,134.2,134.19,34.86804782]
[1726218265208,0.2477426,134.2,134.19,34.99353782]
[1726218265727,0.2477426,134.2,134.19,35.11902782]
[1726218284253,0.2477426,134.2,134.19,41.44417533]
[1726218288157,0.2477426,134.2,134.19,26.57612751]
[1726218288443,0.2477426,134.2,134.19,20.25098]
[1726218288650,0.2477426,134.2,134.19,35.11902782]
[1726218295133,0.2477426,134.2,134.19,41.44382282]
[1726218296629,0.2477426,134.2,134.19,35.11902782]
[1726218296839,0.2477426,134.2,134.19,41.44382282]
[1726218299963,0.2477426,134.2,134.19,35.11902782]
[1726218300137,0.2477426,134.2,134.19,41.4438482]
[1726218300854,0.2477426,134.2,134.19,41.44380411]
[1726218302360,0.2477426,134.2,134.19,41.4438482]
[1726218305785,0.2477426,134.2,134.19,35.11902782]
[1726218306045,0.2477426,134.2,134.19,41.4438482]
[1726218307065,0.2477426,134.2,134.19,65.2207322]
[1726218312267,0.2477426,134.2,134.19,58.89591182]
[1726218315073,0.2477426,134.2,134.19,61.79443346]
[1726218315270,0.2477426,134.2,134.19,68.11849767]
[1726218315475,0.2477426,134.2,134.19,68.11849842]
[1726218319286,0.2477426,134.2,134.19,61.79443346]
[1726218319652,0.2477426,134.2,134.19,46.92638564]
[1726218319970,0.2477426,134.2,134.19,58.89591182]
[1726218334173,0.2477426,134.2,134.19,65.22035477]
[1726218337567,0.2477426,134.2,134.19,32.8998659]
[1726218337872,0.2477426,134.2,134.19,32.7743759]
[1726218338489,0.2477426,134.2,134.19,47.64242372]
[1726218338791,0.2477426,134.2,134.19,32.7743759]
[1726218338967,0.2477426,134.2,134.19,47.64242372]
[1726218339167,0.2477426,134.2,134.19,47.76791372]
[1726218339895,0.2477426,134.2,134.19,41.44347077]
[1726218341370,0.2477426,134.2,134.19,26.57542295]
[1726218341892,0.2477426,134.2,134.19,41.44347077]
[1726218347408,0.2477426,134.2,134.19,35.11902782]
[1726218347595,0.2477426,134.2,134.19,41.44433371]
[1726218350609,0.2477426,134.2,134.19,58.89591182]
[1726218350898,0.2477426,134.2,134.19,65.22121771]
[1726218351509,0.2477426,134.24,134.19,65.22121771]
[1726218351677,0.2477426,134.24,134.23,34.86804782]
[1726218351997,0.2477426,134.24,134.23,41.44433371]
[1726218354400,0.2477426,134.24,134.23,41.44211182]
[1726218357617,0.2477426,134.24,134.23,35.11902782]
[1726218357803,0.2477426,134.24,134.23,41.44215219]
[1726218357983,0.2477426,134.24,134.23,35.11902782]
[1726218358874,0.2477426,134.24,134.23,0.25098]
[1726218360704,0.2477426,134.24,134.23,35.11902782]
[1726218360887,0.2477426,134.24,134.23,41.44220293]
[1726218361636,0.2477426,134.24,134.23,26.57415511]
[1726218363418,0.2477426,134.24,134.23,20.25098]
[1726218363639,0.2477426,134.24,134.23,26.57415511]
[1726218365492,0.2477426,134.24,134.23,0.25098]
[1726218370709,0.2477426,134.24,134.23,15.11902782]
[1726218370915,0.2477426,134.24,134.23,35.11902782]
[1726218374596,0.2477426,134.24,134.23,0.25098]
[1726218374986,0.2477426,134.24,134.23,20.25098]
[1726218375908,0.2477426,134.24,134.23,0.25098]
[1726218377616,0.2477426,134.24,134.22,0.25098]
[1726218378306,0.2477426,134.24,134.22,15.11902782]
[1726218378511,0.2477426,134.24,134.23,20.0]
[1726218378816,0.2477426,134.24,134.23,21.61511983]
[1726218380517,0.2477426,134.24,134.23,14.99353782]
[1726218380739,0.2477426,134.24,134.23,34.99353782]
[1726218381118,0.2477426,134.24,134.23,35.11902782]
[1726218396223,0.2477426,134.24,134.23,60.38521535]
[1726218397419,0.2477426,134.28,134.24,43.776884]
[1726218397739,0.2477426,134.28,134.27,20.0]
[1726218398038,0.2477426,134.28,134.27,20.12549]
[1726218403149,0.2477426,134.28,134.27,14.99353782]
[1726218403449,0.2477426,134.28,134.27,35.11902782]
[1726218405235,0.2477426,134.28,134.27,58.89591182]
[1726218408719,0.2477426,134.28,134.27,44.027864]
[1726218408925,0.2477426,134.28,134.27,58.89591182]
[1726218413457,0.2477426,134.28,134.27,58.89591182]
[1726218415147,0.2477426,134.28,134.27,35.11902782]
[1726218421462,0.2477426,134.28,134.27,20.0]
[1726218422544,0.2477426,134.28,134.25,7.75928544]
[1726218422745,0.2477426,134.28,134.27,14.86804782]
[1726218423053,0.2477426,134.28,134.27,14.99353782]
[1726218423769,0.2477426,134.28,134.27,15.11902782]
[1726218423945,0.2477426,134.28,134.27,35.11902782]
[1726218424357,0.2477426,134.28,134.27,0.25098]
[1726218431671,0.2477426,134.28,134.27,35.11902782]
[1726218431953,0.2477426,134.28,134.27,36.60792696]
[1726218432461,0.2477426,134.28,134.27,35.11902782]
[1726218434771,0.2477426,134.28,134.27,58.89591182]
[1726218437073,0.2477426,134.28,134.27,0.25098]
[1726218438490,0.2477426,134.28,134.27,20.25098]
[1726218440587,0.2477426,134.28,134.27,0.25098]
[1726218464206,0.2477426,134.28,134.27,60.3848856]
[1726218464876,0.2477426,134.28,134.27,58.89591182]
[1726218468204,0.2477426,134.28,134.27,88.89591182]
[1726218468592,0.2477426,134.28,134.27,58.89591182]
[1726218471607,0.2477426,134.28,134.27,88.89591182]
[1726218474408,0.2477426,134.28,134.27,58.89591182]
[1726218477597,0.2477426,134.32,134.29,14.86804782]
[1726218477795,0.2477426,134.32,134.3,20.25098]
[1726218481114,0.2477426,134.32,134.3,0.25098]
[1726218481418,0.2477426,134.32,134.31,0.12549]
[1726218481602,0.2477426,134.32,134.29,0.25098]
[1726218482120,0.2477426,134.32,134.29,15.11902782]
[1726218482421,0.2477426,134.32,134.3,20.0]
[1726218482803,0.2477426,134.32,134.31,0.12549]
[1726218483722,0.2477426,134.32,134.3,0.12549]
[1726218483931,0.2477426,134.32,134.31,14.86804782]
[1726218484095,0.2477426,134.32,134.31,35.11902782]
[1726218486013,0.2477426,134.32,134.31,36.60761332]
[1726218486221,0.2477426,134.32,134.31,35.11902782]
[1726218488300,0.2477426,134.32,134.31,58.89591182]
[1726218489396,0.2477426,134.32,134.31,65.2152243]
[1726218494827,0.2477426,134.32,134.31,58.89591182]
[1726218495129,0.2477426,134.32,134.31,65.21482006]
[1726218497611,0.2477426,134.36,134.32,43.776884]
[1726218497934,0.2477426,134.36,134.34,20.0]
[1726218498133,0.2477426,134.36,134.35,0.12549]
[1726218504937,0.2477426,134.36,134.33,20.12549]
[1726218505238,0.2477426,134.36,134.34,0.12549]
[1726218508524,0.2477426,134.36,134.33,0.25098]
[1726218511238,0.2477426,134.36,134.33,0.12549]
[1726218522354,0.2477426,134.36,134.33,14.99353782]
[1726218522657,0.2477426,134.36,134.34,34.86804782]
[1726218522843,0.2477426,134.36,134.35,15.11902782]
[1726218523042,0.2477426,134.36,134.35,35.11902782]
[1726218524455,0.2477426,134.36,134.35,20.25098]
[1726218528154,0.2477426,134.36,134.35,20.25098]
[1726218528859,0.2477426,134.36,134.35,0.25098]
[1726218529061,0.2477426,134.36,134.35,20.25098]
[1726218531769,0.2477426,134.36,134.35,35.11902782]
[1726218532368,0.2477426,134.36,134.35,15.11902782]
[1726218532554,0.2477426,134.36,134.35,35.11902782]
[1726218533482,0.2477426,134.36,134.35,0.25098]
[1726218534052,0.2477426,134.36,134.35,20.25098]
[1726218540384,0.2477426,134.36,134.35,0.25098]
[1726218570520,0.2477426,134.36,134.34,20.0]
[1726218573087,0.2477426,134.36,134.35,0.12549]
[1726218573286,0.2477426,134.36,134.35,35.11902782]
[1726218573484,0.2477426,134.36,134.35,20.25098]
[1726218573802,0.2477426,134.36,134.35,0.25098]
[1726218574802,0.2477426,134.36,134.35,0.12549]
[1726218580294,0.2477426,134.36,134.34,20.0]
[1726218601511,0.2477426,134.36,134.33,7.76784292]
[1726218628758,0.2477426,134.36,134.34,20.0]
[1726218629051,0.2477426,134.36,134.34,21.48848894]
[1726218630360,0.2477426,134.36,134.34,20.0]
[1726218631157,0.2477426,134.36,134.34,21.48845537]
[1726218632568,0.2477426,134.36,134.34,20.0]
[1726218632860,0.2477426,134.36,134.34,21.48845535]
[1726218634165,0.2477426,134.36,134.34,20.0]
[1726218634374,0.2477426,134.36,134.34,21.48845507]
[1726218634554,0.2477426,134.36,134.34,20.0]
[1726218644782,0.2477426,134.36,134.34,21.48845401]
[1726218645085,0.2477426,134.36,134.34,20.0]
[1726218645957,0.2477426,134.36,134.35,1.48845374]
[1726218646267,0.2477426,134.36,134.35,1.73943374]
[1726218646777,0.2477426,134.36,134.35,0.25098]
[1726218655292,0.2477426,134.36,134.35,0.12549]
[1726218662101,0.2477426,134.36,134.35,0.25098]
[1726218662887,0.2477426,134.36,134.34,20.0]
[1726218668500,0.2477426,134.36,134.33,7.78618744]
[1726218670001,0.2477426,134.36,134.34,20.0]
[1726218687417,0.2477426,134.36,134.33,7.78618744]
[1726218726342,0.2477426,134.36,134.34,21.48866317]
[1726218727446,0.2477426,134.36,134.34,20.0]
[1726218732137,0.2477426,134.36,134.35,0.25098]
[1726218734759,0.2477426,134.36,134.35,24.027864]
[1726218734962,0.2477426,134.36,134.35,58.89591182]
[1726218737960,0.2477426,134.36,134.35,20.25098]
[1726218752163,0.2477426,134.36,134.35,0.25098]
[1726218753252,0.2477426,134.36,134.34,20.0]
[1726218767465,0.2477426,134.36,134.34,21.48858695]
[1726218767781,0.2477426,134.36,134.34,20.0]
[1726218771976,0.2477426,134.36,134.35,0.25098]
[1726218787303,0.2477426,134.36,134.34,20.0]
[1726218797289,0.2477426,134.36,134.33,7.78007339]
[1726218836235,0.2477426,134.36,134.33,7.78007339]
[1726218839232,0.2477426,134.36,134.34,20.0]
[1726218840928,0.2477426,134.36,134.34,34.91489931]
[1726218843737,0.2477426,134.36,134.35,0.12549]
[1726218844117,0.2477426,134.36,134.35,0.25098]
[1726218844740,0.2477426,134.36,134.35,15.16587931]
[1726218844920,0.2477426,134.36,134.35,35.16587931]
[1726218845637,0.2477426,134.36,134.35,58.94276331]
[1726218848339,0.2477426,134.36,134.35,44.027864]
[1726218848643,0.2477426,134.36,134.35,58.94276331]
[1726218853242,0.2477426,134.36,134.35,20.0]
[1726218853443,0.2477426,134.36,134.35,34.91489931]
[1726218854849,0.2477426,134.36,134.35,58.94276331]
[1726218858551,0.2477426,134.36,134.35,20.25098]
[1726218858739,0.2477426,134.36,134.35,35.16587931]
[1726218859043,0.2477426,134.36,134.35,21.48814508]
[1726218859250,0.2477426,134.36,134.35,20.0]
[1726218859563,0.2477426,134.36,134.35,21.488254]
[1726218859959,0.2477426,134.36,134.35,34.91489931]
[1726218860333,0.2477426,134.36,134.35,35.16587931]
[1726218872246,0.2477426,134.36,134.35,20.25098]
[1726218872459,0.2477426,134.36,134.35,0.25098]
[1726218876952,0.2477426,134.36,134.35,16.65417707]
[1726218877156,0.2477426,134.36,134.35,35.16587931]
[1726218892061,0.2477426,134.36,134.35,36.65396478]
[1726218892267,0.2477426,134.36,134.35,35.16587931]
[1726218892464,0.2477426,134.36,134.35,36.65397928]
[1726218892777,0.2477426,134.36,134.35,58.94276331]
[1726218900159,0.2477426,134.4,134.36,43.776884]
[1726218900358,0.2477426,134.4,134.39,14.91489931]
[1726218900584,0.2477426,134.4,134.39,35.16587931]
[1726218901454,0.2477426,134.4,134.39,0.25098]
[1726218902062,0.2477426,134.4,134.39,20.25098]
[1726218905072,0.2477426,134.4,134.39,58.94276331]
[1726218914289,0.2477426,134.4,134.39,35.16587931]
[1726218914489,0.2477426,134.4,134.39,20.25098]
[1726218917995,0.2477426,134.4,134.39,20.0]
[1726218919075,0.2477426,134.4,134.37,34.91489931]
[1726218919378,0.2477426,134.4,134.38,0.25098]
[1726218923893,0.2477426,134.4,134.36,7.77940077]
[1726218924100,6.8384426,134.4,134.36,7.77940077]
[1726218924306,16.4789,134.39,134.36,7.77940077]
[1726218924632,16.4789,134.39,134.33,7.464]
[1726218924977,16.4789,134.39,134.33,15.24692937]
[1726218929487,16.4789,134.39,134.34,27.464]
[1726218929816,0.2477426,134.4,134.37,20.0]